bitfinex/quotes_BTCUSD_20250205
["timestamp","ask_amount","ask_price","bid_price","bid_amount"]
[1738765905191,0.17090847,98619.0,98596.0,0.08143654]
[1738765905400,0.17090847,98619.0,98605.0,0.152121]
[1738765905770,0.17090847,98619.0,98606.0,0.152119]
[1738765905975,0.1521,98619.0,98602.0,0.202833]
[1738765906180,0.1521,98619.0,98610.0,0.152114]
[1738765906383,0.1521,98619.0,98608.0,0.152116]
[1738765907214,0.1521,98619.0,98609.0,0.152115]
[1738765907429,0.1521,98619.0,98608.0,0.152116]
[1738765907761,0.1521,98619.0,98600.0,0.202839]
[1738765908177,0.1521,98619.0,98595.0,0.00022428]
[1738765908178,0.2343,98619.0,98595.0,0.00022428]
[1738765908388,0.38570365,98619.0,98595.0,0.00022428]
[1738765908590,0.54573768,98619.0,98595.0,0.00022428]
[1738765908795,0.45199334,98619.0,98595.0,0.00022428]
[1738765909000,0.30199334,98619.0,98595.0,0.08166082]
[1738765909396,0.30199334,98619.0,98603.0,0.152124]
[1738765909611,0.30199334,98619.0,98595.0,0.08166082]
[1738765909801,0.01879334,98619.0,98596.0,0.00101416]
[1738765910034,0.01879334,98619.0,98613.0,0.152108]
[1738765910236,0.01879334,98619.0,98609.0,0.20282]
[1738765910468,0.01879334,98619.0,98618.0,0.15232649]
[1738765911107,0.01879334,98619.0,98618.0,0.25483014]
[1738765911343,0.08978103,98641.0,98618.0,0.10272814]
[1738765911527,0.08978103,98641.0,98619.0,0.10250365]
[1738765911918,0.202757,98640.0,98619.0,0.10250365]
[1738765912121,0.20278,98629.0,98619.0,0.10250365]
[1738765912323,0.1521,98619.0,98618.0,0.00022449]
[1738765912768,0.4326,98619.0,98618.0,0.00022449]
[1738765914263,0.53510365,98619.0,98618.0,0.00022449]
[1738765914463,0.59663176,98619.0,98618.0,0.00022449]
[1738765915282,0.49412811,98619.0,98618.0,0.00022449]
[1738765916794,0.48145811,98619.0,98618.0,0.00022449]
[1738765917616,0.35095811,98619.0,98618.0,0.00022449]
[1738765917998,0.04885811,98619.0,98618.0,0.00022449]
[1738765918563,0.20095811,98619.0,98618.0,0.00022449]
[1738765919950,0.17088876,98619.0,98618.0,0.00022449]
[1738765920155,0.01878876,98619.0,98618.0,0.00022449]
[1738765920356,0.01878876,98619.0,98618.0,0.25483014]
[1738765920804,0.01878876,98619.0,98618.0,0.00022449]
[1738765920979,0.17088876,98619.0,98618.0,0.00022449]
[1738765921179,0.7015,98619.0,98618.0,0.00022449]
[1738765921358,0.85240365,98619.0,98618.0,0.00022449]
[1738765921759,0.91324365,98619.0,98618.0,0.00022449]
[1738765922003,0.93624365,98619.0,98618.0,0.00022449]
[1738765922705,0.85995533,98619.0,98618.0,0.00022449]
[1738765922907,0.78763564,98619.0,98618.0,0.00022449]
[1738765923136,0.73923564,98619.0,98618.0,0.00022449]
[1738765923751,0.51383564,98619.0,98618.0,0.00022449]
[1738765923947,0.49498221,98619.0,98618.0,0.00022449]
[1738765924390,0.34288221,98619.0,98618.0,0.15232649]
[1738765924696,0.34288221,98619.0,98618.0,0.00022449]
[1738765924892,0.34288221,98619.0,98618.0,0.15232649]
[1738765925099,0.34288221,98619.0,98618.0,0.00022449]
[1738765925297,0.20277,98634.0,98622.0,0.152095]
[1738765925532,0.15208,98633.0,98618.0,0.10272814]
[1738765925732,0.324,98636.0,98618.0,0.10272814]
[1738765925733,0.152081,98632.0,98625.0,0.15209]
[1738765926005,0.152084,98630.0,98624.0,0.152092]
[1738765926446,0.06084,98635.0,98618.0,0.30553014]
[1738765926653,0.152089,98627.0,98620.0,0.152098]
[1738765926857,0.06084,98633.0,98618.0,0.00022449]
[1738765927067,0.1521,98619.0,98618.0,0.00022449]
[1738765927265,0.36294,98619.0,98618.0,0.00022449]
[1738765927679,0.44144,98619.0,98618.0,0.00022449]
[1738765927991,0.3806,98619.0,98618.0,0.00022449]
[1738765928219,0.4297488,98619.0,98618.0,0.00022449]
[1738765930093,0.59309245,98619.0,98618.0,0.00022449]
[1738765930412,0.2873236,98619.0,98618.0,0.00022449]
[1738765932164,0.77466725,98619.0,98618.0,0.00022449]
[1738765932368,0.71382725,98619.0,98618.0,0.00022449]
[1738765932603,0.5328236,98619.0,98618.0,0.00022449]
[1738765932962,0.69616725,98619.0,98618.0,0.00022449]
[1738765933270,0.63532725,98619.0,98618.0,0.00022449]
[1738765933483,0.68152725,98619.0,98618.0,0.00022449]
[1738765933639,0.5328236,98619.0,98618.0,0.00022449]
[1738765934663,0.3807236,98619.0,98618.0,0.00022449]
[1738765934862,0.3807236,98619.0,98618.0,0.15232649]
[1738765934863,0.0567236,98619.0,98618.0,0.15232649]
[1738765935320,0.0075748,98619.0,98618.0,0.15232649]
[1738765935828,0.0075748,98619.0,98618.0,0.25483014]
[1738765936039,0.0075748,98619.0,98618.0,0.00022449]
[1738765936236,0.0075748,98619.0,98618.0,0.15232649]
[1738765936511,0.152087,98628.0,98621.0,0.152097]
[1738765937082,0.01893483,98643.0,98618.0,0.00022449]
[1738765937422,0.152074,98637.0,98622.0,0.202792]
[1738765937671,0.324,98642.0,98623.0,0.10250365]
[1738765937847,0.08978103,98649.0,98623.0,0.18511754]
[1738765938063,0.152066,98642.0,98623.0,0.38689465]
[1738765938265,0.202741,98648.0,98636.0,0.152073]
[1738765938460,0.152063,98643.0,98634.0,0.202769]
[1738765938755,0.202743,98647.0,98634.0,0.152076]
[1738765938897,0.202745,98646.0,98634.0,0.152076]
[1738765939110,0.08978103,98649.0,98623.0,0.10250365]
[1738765939313,0.10250365,98648.0,98618.0,0.00022449]
[1738765939823,0.152091,98625.0,98619.0,0.152099]
[1738765940220,0.1521,98619.0,98618.0,0.00022449]
[1738765942348,0.52530034,98619.0,98618.0,0.00022449]
[1738765942479,0.62780399,98619.0,98618.0,0.00022449]
[1738765943650,0.658374,98619.0,98618.0,0.00022449]
[1738765943856,0.90467472,98619.0,98618.0,0.00022449]
[1738765944056,0.97546647,98619.0,98618.0,0.00022449]
[1738765944592,0.90092575,98619.0,98618.0,0.00022449]
[1738765946880,0.87792575,98619.0,98618.0,0.00022449]
[1738765947489,0.867974,98619.0,98618.0,0.00022449]
[1738765948729,0.61547035,98619.0,98618.0,0.00022449]
[1738765948928,0.53287035,98619.0,98618.0,0.00022449]
[1738765949988,0.49502321,98619.0,98618.0,0.00022449]
[1738765951256,0.4761,98619.0,98618.0,0.00022449]
[1738765952331,0.324,98619.0,98618.0,0.00022449]
[1738765952711,0.324,98619.0,98618.0,0.15232649]
[1738765953330,0.324,98639.0,98619.0,0.2028]
[1738765953509,0.324,98639.0,98618.0,0.10272814]
[1738765953510,0.09082909,98641.0,98621.0,0.405592]
[1738765953722,0.152082,98631.0,98622.0,0.10250365]
[1738765953930,0.16566815,98640.0,98618.0,0.00022449]
[1738765954144,0.15,98639.0,98618.0,0.00022449]
[1738765954732,0.324,98647.0,98619.0,0.10351763]
[1738765954961,0.202745,98646.0,98619.0,0.10250365]
[1738765955163,0.15207,98639.0,98630.0,0.152083]
[1738765955371,0.324,98647.0,98620.0,0.202798]
[1738765955583,0.324,98647.0,98619.0,0.10250365]
[1738765955584,0.1521,98619.0,98618.0,0.00022449]
[1738765956292,0.75160365,98619.0,98618.0,0.00022449]
[1738765956519,2.37700365,98619.0,98618.0,0.00022449]
[1738765956933,0.87700365,98619.0,98618.0,0.00022449]
[1738765957150,0.89448623,98619.0,98618.0,0.00022449]
[1738765957355,0.89448623,98619.0,98618.0,4.9e-07]
[1738765957356,2.45532623,98619.0,98618.0,4.9e-07]
[1738765957504,2.47423287,98619.0,98618.0,4.9e-07]
[1738765959014,2.48423287,98619.0,98618.0,4.9e-07]
[1738765960100,2.49423287,98619.0,98618.0,4.9e-07]
[1738765960347,2.70333652,98619.0,98618.0,4.9e-07]
[1738765960758,0.06084,98606.0,98595.0,0.00022428]
[1738765960966,0.385975,98596.0,98595.0,0.00036425]
[1738765961173,0.48847865,98596.0,98595.0,0.00036425]
[1738765961966,0.50738529,98596.0,98595.0,0.00036425]
[1738765962515,0.55528529,98596.0,98595.0,0.00036425]
[1738765963002,0.0781,98594.0,98587.0,3.9e-07]
[1738765963256,0.173,98595.0,98583.0,2.8e-07]
[1738765963257,0.325154,98584.0,98583.0,2.8e-07]
[1738765963451,0.82975765,98584.0,98583.0,3.3e-07]
[1738765963660,2.34975765,98584.0,98583.0,3.3e-07]
[1738765963808,2.4612613,98584.0,98583.0,3.3e-07]
[1738765964217,0.01,98581.0,98563.0,0.00022407]
[1738765964417,0.49358665,98565.0,98564.0,2.8e-07]
[1738765964817,2.01658665,98565.0,98564.0,2.8e-07]
[1738765966192,2.08596436,98565.0,98564.0,2.8e-07]
[1738765966394,0.384588,98562.0,98561.0,4.2e-07]
[1738765966602,0.81109165,98562.0,98561.0,4.2e-07]
[1738765967048,0.312196,98557.0,98556.0,7e-07]
[1738765967252,0.76169965,98557.0,98556.0,7e-07]
[1738765967453,0.84635965,98557.0,98556.0,7e-07]
[1738765967866,0.325216,98544.0,98492.0,0.152295]
[1738765968077,0.325216,98544.0,98488.0,0.0147502]
[1738765968078,0.228,98528.0,98488.0,0.0147502]
[1738765968253,0.47355665,98520.0,98488.0,0.0147502]
[1738765968485,0.47355665,98520.0,98519.0,2.8e-07]
[1738765968690,0.302301,98489.0,98488.0,0.0147502]
[1738765968899,0.40480465,98489.0,98488.0,0.0147502]
[1738765969322,0.40480465,98489.0,98488.0,0.01521714]
[1738765970881,0.42780465,98489.0,98488.0,0.01521714]
[1738765972317,0.27780465,98489.0,98488.0,0.01521714]
[1738765972978,0.31564465,98489.0,98488.0,0.01521714]
[1738765973186,0.25480465,98489.0,98488.0,0.01521714]
[1738765974848,0.27780465,98489.0,98488.0,0.01521714]
[1738765975409,0.25480465,98489.0,98488.0,0.01521714]
[1738765976516,0.476301,98489.0,98488.0,0.01521714]
[1738765976920,0.57880465,98489.0,98488.0,0.01521714]
[1738765977692,0.5888896,98489.0,98488.0,0.01521714]
[1738765977902,0.7618896,98489.0,98488.0,0.01521714]
[1738765978349,0.7388896,98489.0,98488.0,0.01521714]
[1738765978547,0.72880465,98489.0,98488.0,0.01521714]
[1738765979111,0.57880465,98489.0,98488.0,0.01521714]
[1738765979334,0.75180465,98489.0,98488.0,0.01521714]
[1738765979539,0.9151483,98489.0,98488.0,0.01521714]
[1738765979939,0.75180465,98489.0,98488.0,0.01521714]
[1738765980764,0.81264465,98489.0,98488.0,0.01521714]
[1738765981213,0.57880465,98489.0,98488.0,0.01521714]
[1738765982377,0.75180465,98489.0,98488.0,0.01521714]
[1738765983154,0.81264465,98489.0,98488.0,0.01521714]
[1738765983551,0.78964465,98489.0,98488.0,0.01521714]
[1738765983783,0.63964465,98489.0,98488.0,0.01521714]
[1738765984441,0.213141,98489.0,98488.0,0.01521714]
[1738765984643,0.213141,98489.0,98488.0,0.01544163]
[1738765985673,0.31564465,98489.0,98488.0,0.01544163]
[1738765986962,0.90512721,98489.0,98488.0,6.3e-07]
[1738765987163,0.173,98488.0,98484.0,9.1e-07]
[1738765987396,0.33865065,98485.0,98484.0,4.5e-07]
[1738765987796,1.83865065,98485.0,98484.0,4.5e-07]
[1738765989494,1.84615069,98485.0,98484.0,4.5e-07]
[1738765989665,0.152339,98464.0,98463.0,7e-05]
[1738765989871,0.152398,98426.0,98425.0,0.0792]
[1738765990177,0.152398,98426.0,98425.0,0.07966743]
[1738765990350,0.152398,98426.0,98425.0,0.00046743]
[1738765990774,0.152386,98434.0,98425.0,0.00046743]
[1738765990934,0.06084,98449.0,98425.0,0.00046743]
[1738765991136,0.152398,98426.0,98425.0,0.00046743]
[1738765991352,0.25490165,98426.0,98425.0,0.00046743]
[1738765991551,0.152398,98426.0,98425.0,0.00046743]
[1738765992226,0.25490165,98426.0,98425.0,0.00046743]
[1738765992630,0.31574165,98426.0,98425.0,0.00046743]
[1738765992829,0.46574165,98426.0,98425.0,0.00046743]
[1738765993206,0.42790165,98426.0,98425.0,4.3e-07]
[1738765993347,0.53011309,98426.0,98425.0,4.3e-07]
[1738765993543,0.322409,98419.0,98418.0,6.1e-07]
[1738765993728,0.152437,98401.0,98362.0,0.0756]
[1738765993935,0.40494065,98401.0,98400.0,3.00014017]
[1738765994308,0.42794065,98401.0,98400.0,3.00014017]
[1738765994834,0.302437,98401.0,98400.0,3.00014017]
[1738765995029,0.152437,98401.0,98400.0,3.00014017]
[1738765995980,0.203239,98406.0,98400.0,3.00014017]
[1738765996181,0.152437,98401.0,98400.0,3.00014017]
[1738765996361,0.15,98419.0,98400.0,3.00014017]
[1738765996564,0.15,98417.0,98400.0,3.00014017]
[1738765996767,0.08143654,98424.0,98400.0,3.00014017]
[1738765996946,0.152428,98407.0,98400.0,3.00014017]
[1738765997148,0.10250365,98423.0,98400.0,3.00024707]
[1738765997608,0.08143654,98424.0,98400.0,3.00024707]
[1738765997779,0.15,98429.0,98400.0,3.00024707]
[1738765997977,0.203214,98418.0,98400.0,3.00024707]
[1738765998187,0.203212,98419.0,98400.0,3.00024707]
[1738765998400,0.152437,98401.0,98400.0,3.00024707]
[1738765999904,0.1663419,98420.0,98400.0,3.00024707]
[1738766000142,0.01017235,98432.0,98400.0,3.00024707]
[1738766000318,0.152437,98401.0,98400.0,3.00024707]
[1738766004463,0.152436,98402.0,98400.0,3.00024707]
[1738766004638,0.152398,98426.0,98400.0,3.00024707]
[1738766004848,0.152436,98402.0,98400.0,3.00024707]
[1738766005059,0.152437,98401.0,98400.0,3.00024707]
[1738766007029,0.25494065,98401.0,98400.0,3.00024707]
[1738766007687,0.152437,98401.0,98400.0,3.00024707]
[1738766009437,0.08166125,98418.0,98400.0,3.00024707]
[1738766009659,0.152437,98401.0,98400.0,3.00024707]
[1738766011375,0.08166125,98418.0,98400.0,3.00024707]
[1738766011623,0.00022471,98418.0,98417.0,0.152412]
[1738766011871,0.00022471,98418.0,98417.0,0.25593153]
[1738766012117,0.00022471,98418.0,98417.0,0.53701565]
[1738766012368,0.09082909,98460.0,98422.0,0.15]
[1738766012612,0.09082909,98460.0,98450.0,0.152361]
[1738766012867,0.09082909,98460.0,98452.0,0.152358]
[1738766013115,0.09082909,98460.0,98459.0,0.152347]
[1738766013465,0.09082909,98460.0,98457.0,0.203133]
[1738766013657,0.09082909,98460.0,98448.0,0.203151]
[1738766013891,0.09082909,98460.0,98459.0,0.152347]
[1738766014150,0.09082909,98460.0,98459.0,0.25485065]
[1738766015362,0.203029,98508.0,98459.0,0.25485065]
[1738766015363,0.152304,98487.0,98465.0,0.203116]
[1738766015568,0.203066,98490.0,98472.0,0.203102]
[1738766015800,0.152307,98486.0,98473.0,0.10250365]
[1738766016027,0.152306,98486.0,98474.0,0.203099]
[1738766016248,0.152304,98487.0,98475.0,0.10250365]
[1738766016482,0.203029,98508.0,98475.0,0.10250365]
[1738766016483,0.01002164,98515.0,98475.0,0.10250365]
[1738766016721,0.152294,98494.0,98486.0,0.152305]
[1738766016949,0.152277,98505.0,98497.0,0.152288]
[1738766017218,0.00022491,98517.0,98494.0,0.152292]
[1738766017219,0.15,98515.0,98494.0,0.152292]
[1738766017441,0.00022491,98517.0,98499.0,0.152285]
[1738766017633,0.00022491,98517.0,98492.0,0.203061]
[1738766017785,0.15,98515.0,98492.0,0.10250365]
[1738766017988,0.203012,98516.0,98505.0,0.152275]
[1738766017989,0.152263,98514.0,98505.0,0.152275]
[1738766018189,0.00069024,98517.0,98512.0,0.152264]
[1738766018390,0.00069024,98517.0,98500.0,0.1663419]
[1738766018391,0.00069024,98517.0,98508.0,0.203027]
[1738766018559,0.00069024,98517.0,98509.0,0.10250365]
[1738766018762,0.00069024,98517.0,98510.0,0.00101504]
[1738766019008,0.152259,98516.0,98511.0,0.10250365]
[1738766019248,0.00069024,98517.0,98512.0,0.152264]
[1738766019429,0.00069024,98517.0,98512.0,0.10250365]
[1738766020017,0.152273,98508.0,98492.0,0.355358]
[1738766020291,0.00069024,98517.0,98493.0,0.10250365]
[1738766020494,0.152284,98500.0,98493.0,0.10250365]
[1738766020710,0.152283,98501.0,98493.0,0.10250365]
[1738766020951,0.00069024,98517.0,98476.0,0.203094]
[1738766020952,0.152304,98487.0,98476.0,0.203094]
[1738766021229,0.15,98515.0,98478.0,0.203089]
[1738766021454,0.152303,98488.0,98479.0,0.25481865]
[1738766021686,0.08143654,98514.0,98480.0,0.152314]
[1738766021687,0.152301,98489.0,98480.0,0.152314]
[1738766021946,0.23143654,98514.0,98473.0,1.01536243]
[1738766021947,0.15,98512.0,98473.0,1.01536243]
[1738766022192,0.152308,98485.0,98477.0,0.152318]
[1738766022434,0.152307,98485.0,98478.0,0.10250365]
[1738766022669,0.152305,98487.0,98478.0,0.10250365]
[1738766022940,0.10250365,98511.0,98478.0,0.10250365]
[1738766023192,0.152306,98486.0,98478.0,0.24490065]
[1738766023430,0.152303,98488.0,98480.0,0.152314]
[1738766023796,0.152307,98486.0,98478.0,0.24490065]
[1738766024038,0.152302,98489.0,98481.0,0.152313]
[1738766024280,0.10250365,98511.0,98451.0,0.0465]
[1738766024281,0.08143654,98488.0,98451.0,0.0465]
[1738766024485,0.06084,98494.0,98460.0,0.152345]
[1738766024687,0.06084,98492.0,98461.0,0.10250365]
[1738766024830,0.152339,98465.0,98461.0,0.10250365]
[1738766025033,0.06084,98489.0,98468.0,0.152333]
[1738766025235,0.152313,98482.0,98469.0,0.203109]
[1738766025434,0.152313,98482.0,98460.0,0.25617395]
[1738766025435,0.01,98529.0,98477.0,0.152319]
[1738766025820,0.152305,98487.0,98479.0,0.152316]
[1738766025990,0.152305,98487.0,98470.0,0.10250365]
[1738766025991,0.152305,98487.0,98480.0,0.152314]
[1738766026313,0.15,98509.0,98470.0,0.10250365]
[1738766026314,0.06084,98505.0,98470.0,0.10250365]
[1738766026517,0.13939816,98514.0,98461.0,0.152343]
[1738766026518,0.21084,98499.0,98461.0,0.152343]
[1738766026719,0.06084,98497.0,98462.0,0.10250365]
[1738766026919,0.06084,98495.0,98462.0,0.10250365]
[1738766027142,0.203108,98470.0,98437.0,0.08143654]
[1738766027267,0.06084,98489.0,98452.0,0.10250365]
[1738766027468,0.152336,98467.0,98459.0,0.152347]
[1738766027665,0.152337,98466.0,98459.0,0.152347]
[1738766027871,0.152334,98468.0,98452.0,0.10250365]
[1738766028077,0.203106,98471.0,98452.0,0.10250365]
[1738766028387,0.00046504,98471.0,98453.0,0.0010156]
[1738766028592,0.00046504,98471.0,98470.0,0.15233]
[1738766028793,0.00046504,98471.0,98470.0,0.40483365]
[1738766028986,0.00046504,98471.0,98470.0,0.50343365]
[1738766029211,0.08143654,98514.0,98512.0,0.152265]
[1738766029588,0.000107,98515.0,98514.0,0.152262]
[1738766029827,0.000107,98515.0,98514.0,0.25476565]
[1738766030215,0.000107,98515.0,98486.0,0.08143654]
[1738766030394,0.000107,98515.0,98487.0,0.10351871]
[1738766030757,0.000107,98515.0,98491.0,0.15]
[1738766030923,0.000107,98515.0,98492.0,0.10250365]
[1738766031545,0.152304,98487.0,98486.0,0.00014017]
[1738766032829,0.203037,98504.0,98486.0,0.00014017]
[1738766033019,0.1523,98490.0,98486.0,0.00014017]
[1738766033214,0.198,98513.0,98486.0,0.00014017]
[1738766033215,0.152304,98487.0,98486.0,0.00014017]
[1738766033642,0.203057,98495.0,98486.0,0.00014017]
[1738766033857,0.15,98511.0,98486.0,0.00014017]
[1738766034044,0.00991147,98524.0,98486.0,0.00014017]
[1738766034045,0.152295,98493.0,98486.0,0.00014017]
[1738766034249,0.203035,98505.0,98486.0,0.00014017]
[1738766034773,0.152295,98493.0,98487.0,0.152304]
[1738766035000,0.203054,98496.0,98486.0,0.00014017]
[1738766035280,0.15,98511.0,98486.0,0.00014017]
[1738766035435,0.152304,98487.0,98486.0,0.00014017]
[1738766035638,0.1523,98490.0,98486.0,0.00014017]
[1738766035839,0.152304,98487.0,98486.0,0.00014017]
[1738766036268,0.203025,98510.0,98486.0,0.00014017]
[1738766036478,0.15,98509.0,98487.0,0.152304]
[1738766036660,0.000107,98490.0,98486.0,0.00014017]
[1738766037309,0.152407,98490.0,98486.0,0.00014017]
[1738766037477,0.000107,98490.0,98486.0,0.00014017]
[1738766038094,0.152304,98487.0,98486.0,0.00014017]
[1738766038733,0.000107,98490.0,98486.0,0.00014017]
[1738766039102,0.000107,98490.0,98487.0,0.152303]
[1738766039298,0.000107,98490.0,98486.0,0.00014017]
[1738766039497,0.152304,98487.0,98486.0,0.00014017]
[1738766040400,0.000107,98490.0,98486.0,0.10264382]
[1738766040607,0.000107,98490.0,98486.0,0.00014017]
[1738766040788,0.152304,98487.0,98486.0,0.00014017]
[1738766041869,0.152304,98487.0,98461.0,0.0002247]
[1738766041870,0.302343,98462.0,98461.0,0.0002247]
[1738766042314,0.53524665,98462.0,98461.0,0.0002247]
[1738766042741,0.55824665,98462.0,98461.0,0.0002247]
[1738766043147,0.15,98457.0,98405.0,0.15243]
[1738766043348,0.40590365,98462.0,98415.0,0.08143654]
[1738766043349,0.15,98451.0,98415.0,0.08143654]
[1738766043543,0.15,98451.0,98406.0,0.10250365]
[1738766043544,0.10250365,98450.0,98416.0,0.10250365]
[1738766043802,0.15,98449.0,98416.0,0.10250365]
[1738766043975,0.15,98449.0,98404.0,0.243886]
[1738766043976,0.16641768,98440.0,98404.0,0.243886]
[1738766044204,0.30567465,98439.0,98405.0,0.10250365]
[1738766044556,0.203173,98438.0,98405.0,0.10296869]
[1738766044850,0.152421,98412.0,98405.0,0.10296869]
[1738766045092,0.10250365,98437.0,98405.0,0.10296869]
[1738766045349,0.203153,98448.0,98423.0,0.152402]
[1738766045350,0.152389,98433.0,98423.0,0.152402]
[1738766045569,0.152382,98437.0,98428.0,0.152395]
[1738766045795,0.08143654,98449.0,98423.0,0.10250365]
[1738766045991,0.152389,98432.0,98423.0,0.25490665]
[1738766046138,0.152382,98437.0,98428.0,0.152395]
[1738766046342,0.203171,98439.0,98423.0,0.10250365]
[1738766046551,0.203152,98448.0,98424.0,0.10250365]
[1738766046791,0.203154,98447.0,98424.0,0.10250365]
[1738766046995,0.08143654,98449.0,98424.0,0.10250365]
[1738766047199,0.01,98484.0,98389.0,0.54652952]
[1738766047200,0.0754,98478.0,98431.0,0.1982]
[1738766047401,0.0754,98478.0,98440.0,0.25659686]
[1738766047573,0.152349,98458.0,98449.0,0.152361]
[1738766047785,0.000107,98490.0,98449.0,0.10250365]
[1738766047968,0.000107,98490.0,98468.0,0.152333]
[1738766047969,0.15232,98477.0,98468.0,0.152333]
[1738766048212,0.152321,98476.0,98467.0,0.152334]
[1738766048540,0.000107,98490.0,98460.0,0.203127]
[1738766048753,0.000107,98490.0,98471.0,0.203105]
[1738766048948,0.000107,98490.0,98472.0,0.10351891]
[1738766049185,0.00024645,98490.0,98472.0,0.10250365]
[1738766049305,0.00024645,98490.0,98480.0,0.152314]
[1738766049703,0.00024645,98490.0,98461.0,0.0496]
[1738766049947,0.00024645,98490.0,98451.0,0.08143654]
[1738766049948,0.10250365,98489.0,98451.0,0.08143654]
[1738766050204,0.0809,98488.0,98452.0,0.10250365]
[1738766050400,0.0809,98488.0,98442.0,0.0465]
[1738766050401,0.203076,98485.0,98442.0,0.0465]
[1738766050539,0.203076,98485.0,98439.0,0.08143654]
[1738766050540,0.203108,98470.0,98448.0,0.152363]
[1738766050884,0.10250365,98484.0,98449.0,0.10250365]
[1738766050885,0.203086,98480.0,98449.0,0.10250365]
[1738766051028,0.203093,98477.0,98439.0,0.08143654]
[1738766051247,0.15,98475.0,98443.0,0.152372]
[1738766051454,0.152362,98450.0,98440.0,0.000107]
[1738766051655,0.203138,98455.0,98443.0,0.152371]
[1738766052052,0.152361,98450.0,98440.0,0.203274]
[1738766052436,0.152361,98450.0,98442.0,0.152373]
[1738766052651,0.15,98473.0,98442.0,0.10250365]
[1738766052784,0.000107,98490.0,98450.0,0.25659686]
[1738766052984,0.000107,98490.0,98460.0,0.25659686]
[1738766053344,0.152301,98489.0,98461.0,0.10351904]
[1738766053557,0.152315,98480.0,98472.0,0.152327]
[1738766053759,0.000107,98490.0,98472.0,0.152327]
[1738766053760,0.000107,98490.0,98472.0,0.10250365]
[1738766053903,0.152314,98481.0,98474.0,0.152324]
[1738766054104,0.152407,98490.0,98474.0,0.10250365]
[1738766054309,0.152407,98490.0,98488.0,0.152302]
[1738766054310,0.000107,98490.0,98488.0,0.152302]
[1738766054519,0.000107,98490.0,98475.0,0.10351905]
[1738766054694,0.000107,98490.0,98488.0,0.152302]
[1738766054917,0.00024645,98490.0,98488.0,0.152302]
[1738766055140,0.00024645,98490.0,98489.0,0.10351891]
[1738766055769,0.00024645,98490.0,98489.0,0.10351881]
[1738766056179,0.00024645,98490.0,98489.0,0.25351881]
[1738766056390,0.00024645,98490.0,98489.0,0.27550365]
[1738766056614,0.00024645,98490.0,98489.0,0.28550365]
[1738766058157,0.00022491,98517.0,98514.0,0.152262]
[1738766058507,0.09082909,98573.0,98542.0,0.152219]
[1738766058754,0.29372509,98573.0,98542.0,0.25472265]
[1738766058967,0.29372509,98573.0,98515.0,0.01]
[1738766058968,0.00024707,98543.0,98515.0,0.01]
[1738766059167,0.00024707,98543.0,98542.0,0.152219]
[1738766059303,0.00024707,98543.0,98542.0,0.25472265]
[1738766059731,0.00024707,98543.0,98542.0,0.40472265]
[1738766060412,0.00024707,98543.0,98542.0,0.42772265]
[1738766060683,0.00024707,98543.0,98542.0,1.45308508]
[1738766061399,0.00024707,98543.0,98542.0,1.46018508]
[1738766062596,0.00024707,98543.0,98542.0,1.45308508]
[1738766062805,0.00024707,98543.0,98542.0,0.43772265]
[1738766063193,0.03136127,98600.0,98543.0,0.15]
[1738766063373,0.03136127,98600.0,98537.0,0.01]
[1738766063374,0.15219,98561.0,98551.0,0.152204]
[1738766063575,0.15,98598.0,98552.0,0.10351822]
[1738766063934,0.152177,98569.0,98560.0,0.25659686]
[1738766064141,0.152177,98569.0,98552.0,0.10250365]
[1738766064142,0.10250365,98598.0,98561.0,0.10250365]
[1738766064345,0.15,98596.0,98538.0,0.202966]
[1738766064580,0.15,98596.0,98534.0,0.08143654]
[1738766064581,0.152208,98549.0,98548.0,0.08143654]
[1738766064914,0.15223,98535.0,98534.0,0.08143654]
[1738766065112,0.15223,98535.0,98534.0,0.18394019]
[1738766065389,0.15223,98535.0,98534.0,0.10250365]
[1738766065547,0.202942,98550.0,98534.0,0.10250365]
[1738766065756,0.152225,98539.0,98535.0,0.10351837]
[1738766065950,0.152225,98539.0,98535.0,0.10250365]
[1738766066152,0.405918,98542.0,98520.0,0.0073]
[1738766066351,0.152249,98523.0,98521.0,0.10264382]
[1738766066552,0.202959,98542.0,98521.0,0.10264382]
[1738766066753,0.000107,98543.0,98521.0,0.10264382]
[1738766066754,0.152227,98537.0,98523.0,0.152248]
[1738766066938,0.152229,98536.0,98524.0,0.10250365]
[1738766067284,0.000107,98543.0,98525.0,0.00101482]
[1738766067445,0.000107,98543.0,98532.0,0.152234]
[1738766067643,0.000107,98543.0,98533.0,0.25575037]
[1738766067849,0.000107,98543.0,98539.0,0.152223]
[1738766068049,0.000107,98543.0,98541.0,0.15222]
[1738766068377,0.000107,98543.0,98542.0,0.25351828]
[1738766068580,0.000107,98543.0,98542.0,0.27550365]
[1738766069167,0.000107,98543.0,98542.0,0.28550365]
[1738766069487,0.0752,98598.0,98552.0,0.023]
[1738766069806,0.152156,98583.0,98561.0,0.40584]
[1738766070031,0.152156,98583.0,98570.0,0.152174]
[1738766070273,0.152156,98583.0,98571.0,0.10250365]
[1738766070736,0.152153,98585.0,98572.0,0.15318634]
[1738766070918,0.00046726,98583.0,98573.0,0.10250365]
[1738766071049,0.00046726,98583.0,98573.0,0.25467465]
[1738766071454,0.00046726,98583.0,98574.0,0.0010143]
[1738766071668,0.00046726,98583.0,98575.0,0.10250365]
[1738766072634,0.00046726,98583.0,98582.0,0.152157]
[1738766073347,0.00046726,98583.0,98582.0,0.25466065]
[1738766073677,0.09082909,98640.0,98587.0,0.01]
[1738766073949,0.09082909,98640.0,98621.0,0.152097]
[1738766074082,0.00024711,98622.0,98621.0,0.25561447]
[1738766074296,0.00024711,98622.0,98621.0,0.25460065]
[1738766074692,0.00024711,98622.0,98621.0,0.27760065]
[1738766076409,0.00024711,98622.0,98621.0,0.43760065]
[1738766076579,0.00024711,98622.0,98621.0,0.41460065]
[1738766077215,0.00024711,98622.0,98621.0,0.43760065]
[1738766077631,0.0720762,98640.0,98639.0,0.152069]
[1738766077818,0.0720762,98640.0,98639.0,0.25457265]
[1738766077969,0.0720762,98640.0,98630.0,0.25659686]
[1738766077970,0.0720762,98640.0,98617.0,1.02127312]
[1738766078174,0.0720762,98640.0,98618.0,0.10250365]
[1738766078617,0.152099,98620.0,98618.0,0.10250365]
[1738766078822,0.202796,98621.0,98612.0,0.00014011]
[1738766079026,0.000107,98622.0,98612.0,0.00014011]
[1738766079444,0.000107,98622.0,98613.0,0.10351769]
[1738766079671,0.000107,98622.0,98620.0,0.152098]